fUSD/lending_fUSD_20260202
["ID","MTS","AMOUNT","RATE_DAILY","PERIOD"]
[404297638,1770045041116,-250.0,0.00012328,2]
[404297639,1770045041126,-250.0,0.00012328,2]
[404297640,1770045041135,-209.57,0.00012349,2]
[404297641,1770045041144,-209.57,0.0001238,2]
[404297642,1770045041154,-166.67,0.00012386,2]
[404297643,1770045041163,-537.95431728,0.00012406,2]
[404297644,1770045041173,-22218.31299895,0.00012626,2]
[404297645,1770045041182,-3559.78277318,0.00012636,2]
[404297646,1770045041192,-2396.51,0.00012743,2]
[404297647,1770045041201,-1600.0,0.00012743,2]
[404297648,1770045041211,-500.0,0.00012851,2]
[404297649,1770045041221,-270.94,0.00012877,2]
[404297650,1770045041229,-166.67,0.00013,2]
[404297651,1770045041238,-500.0,0.00013014,2]
[404297652,1770045041248,-22218.31299895,0.00013379,2]
[404297653,1770045041256,-3559.78277318,0.00013388,2]
[404297654,1770045041265,-500.0,0.00013399,2]
[404297655,1770045041274,-433.0,0.00013414,2]
[404297656,1770045041284,-537.95431728,0.00013505,2]
[404297657,1770045041294,-500.0,0.00013507,2]
[404297658,1770045041303,-587.0,0.00013526,2]
[404297659,1770045041313,-2351.0,0.00013559,2]
[404297660,1770045041322,-1000.0,0.0001357,2]
[404297661,1770045041332,-502.28343568,0.00013698,2]
[404297662,1770045041341,-500.0,0.00013698,2]
[404297663,1770045041350,-500.0,0.00013698,2]
[404297664,1770045041361,-500.0,0.00013698,2]
[404297665,1770045041370,-500.0,0.00013698,2]
[404297666,1770045041382,-502.06664745,0.00013698,2]
[404297667,1770045041393,-4939.22,0.00013699,2]
[404297668,1770045041402,-200.0,0.00013699,2]
[404297669,1770045041411,-500.0,0.00013947,2]
[404297670,1770045041421,-642.79089811,0.00013973,2]
[404297671,1770045041432,-500.0,0.00013973,2]
[404297672,1770045041441,-173.81884184,0.00013973,2]
[404297673,1770045041453,-500.0,0.00013973,2]
[404297674,1770045041463,-500.0,0.00013973,2]
[404297675,1770045041475,-500.0,0.00013973,2]
[404297676,1770045041486,-181.57502123,0.00013973,2]
[404297677,1770045041497,-500.0,0.00013973,2]
[404297678,1770045041507,-500.0,0.00013973,2]
[404297679,1770045041517,-500.0,0.00013973,2]
[404297680,1770045041527,-500.0,0.00013973,2]
[404297681,1770045041540,-163.90719075,0.00013973,2]
[404297682,1770045041549,-259.40505883,0.00013973,2]
[404297683,1770045041559,-500.0,0.00013973,2]
[404297684,1770045041568,-500.90033899,0.00013973,2]
[404297685,1770045041577,-200.896366,0.00014,2]
[404297686,1770045041588,-500.0,0.00014027,2]
[404297687,1770045041597,-22218.31299895,0.00014133,2]
[404297688,1770045041607,-3559.78277318,0.0001414,2]
[404297689,1770045041618,-1600.0,0.00014336,2]
[404297690,1770045041629,-4939.22,0.00014384,2]
[404297691,1770045041639,-507.10580581,0.00014495,2]
[404297692,1770045041649,-1970.59746588,0.0001451,2]
[404297693,1770045041659,-1000.0,0.00014521,2]
[404297694,1770045041668,-1014.69284431,0.00014521,2]
[404297695,1770045041679,-513.5746578,0.00014521,2]
[404297696,1770045041688,-1013.1611986,0.00014521,2]
[404297697,1770045041698,-537.95431728,0.00014604,2]
[404297698,1770045041707,-167.0,0.00014669,2]
[404297699,1770045041717,-151.0,0.00014686,2]
[404297700,1770045041726,-151.0,0.00014686,2]
[404297701,1770045041736,-999.58852035,0.00014705,2]
[404297702,1770045041746,-2637.92992025,0.00014705,2]
[404297703,1770045041755,-4653.62106315,0.00014705,2]
[404297704,1770045041765,-250.0,0.00014808,2]
[404297705,1770045041778,-22218.31299895,0.00014886,2]
[404297706,1770045041790,-3559.78277318,0.00014892,2]
[404297707,1770045041799,-179.5507367,0.000149,2]
[404297708,1770045041808,-3292.0,0.00014915,2]
[404297709,1770045041818,-1000.0,0.00014927,2]
[404297710,1770045041828,-250.0,0.00015,2]
[404297711,1770045041837,-153.79594173,0.0001503,2]
[404297712,1770045041847,-151.0,0.0001503,2]
[404297713,1770045041856,-151.0,0.0001503,2]
[404297714,1770045041866,-1500.0,0.00015068,2]
[404297715,1770045041876,-4939.22,0.00015068,2]
[404297716,1770045041887,-900.0,0.00015068,2]
[404297717,1770045041897,-500.0,0.00015473,2]
[404297718,1770045041908,-500.0,0.00015473,2]
[404297719,1770045041919,-292.5328787,0.00015473,2]
[404297720,1770045041931,-500.0,0.00015473,2]
[404297721,1770045041940,-500.0,0.00015473,2]
[404297722,1770045041950,-500.0,0.00015473,2]
[404297723,1770045041959,-500.0,0.00015473,2]
[404297724,1770045041969,-500.0,0.00015473,2]
[404297725,1770045041978,-305.41786048,0.00015473,2]
[404297726,1770045041988,-500.0,0.00015473,2]
[404297727,1770045041998,-500.0,0.00015473,2]
[404297728,1770045042009,-500.0,0.00015473,2]
[404297729,1770045042018,-500.0,0.00015473,2]
[404297730,1770045042027,-500.0,0.00015473,2]
[404297731,1770045042039,-500.0,0.00015473,2]
[404297732,1770045042050,-500.0,0.00015473,2]
[404297733,1770045042060,-500.0,0.00015473,2]
[404297734,1770045042069,-500.0,0.00015473,2]
[404297735,1770045042079,-500.0,0.00015473,2]
[404297736,1770045042088,-500.0,0.00015473,2]
[404297737,1770045042098,-501.68536334,0.00015473,2]
[404297738,1770045042108,-500.0,0.00015473,2]
[404297739,1770045042117,-500.0,0.00015473,2]
[404297740,1770045042126,-500.0,0.00015473,2]
[404297741,1770045042136,-500.0,0.00015473,2]
[404297742,1770045042145,-500.0,0.00015473,2]
[404297743,1770045042155,-500.0,0.00015473,2]
[404297744,1770045042167,-500.0,0.00015473,2]
[404297745,1770045042177,-500.0,0.00015473,2]
[404297746,1770045042187,-500.0,0.00015473,2]
[404297747,1770045042196,-501.6324076,0.00015473,2]
[404297748,1770045042205,-565.00011393,0.00015473,2]
[404297749,1770045042215,-500.0,0.00015473,2]
[404297750,1770045042224,-500.0,0.00015473,2]
[404297751,1770045042234,-500.0,0.00015473,2]
[404297752,1770045042243,-500.0,0.00015473,2]
[404297753,1770045042252,-500.0,0.00015473,2]
[404297754,1770045042261,-500.0,0.00015473,2]
[404297755,1770045042271,-500.0,0.00015473,2]
[404297756,1770045042284,-500.0,0.00015473,2]
[404297757,1770045042294,-500.0,0.00015473,2]
[404297758,1770045042304,-500.0,0.00015473,2]
[404297759,1770045042313,-500.0,0.00015473,2]
[404297760,1770045042322,-500.0,0.00015473,2]
[404297761,1770045042332,-1852.42,0.00015579,2]
[404297762,1770045042342,-3240.0,0.00015579,2]
[404297763,1770045042351,-1672.28,0.00015579,2]
[404297764,1770045042360,-2000.0,0.00015616,2]
[404297765,1770045042371,-22218.31299895,0.0001564,2]
[404297766,1770045042380,-3559.78277318,0.00015644,2]
[404297767,1770045042390,-12454.0,0.00015669,2]
[404297768,1770045042401,-159.65843549,0.00015681,2]
[404297769,1770045042412,-537.95431728,0.00015702,2]
[404297770,1770045042422,-4939.22,0.00015753,2]
[404297771,1770045042433,-1600.0,0.00015928,2]
[404297772,1770045042443,-200.0,0.00016,2]
[404297773,1770045042455,-1000.0,0.00016021,2]
[404297774,1770045042466,-787.5401961,0.00016021,2]
[404297775,1770045042476,-1000.0,0.00016021,2]
[404297776,1770045042485,-326.63399032,0.00016021,2]
[404297777,1770045042497,-540.54063963,0.00016021,2]
[404297778,1770045042506,-1000.0,0.00016021,2]
[404297779,1770045042516,-343.37022852,0.00016021,2]
[404297780,1770045042526,-500.0,0.00016021,2]
[404297781,1770045042538,-1000.0,0.00016021,2]
[404297782,1770045042548,-500.0,0.00016021,2]
[404297783,1770045042560,-500.0,0.00016021,2]
[404297784,1770045042570,-1000.0,0.00016021,2]
[404297785,1770045042579,-1000.0,0.00016021,2]
[404297786,1770045042601,-503.32803614,0.00016021,2]
[404297787,1770045042615,-1036.85123149,0.00016021,2]
[404297788,1770045042629,-1000.0,0.00016021,2]
[404297789,1770045042642,-500.0,0.00016021,2]
[404297790,1770045042654,-269.8904873,0.00016021,2]
[404297791,1770045042665,-1000.0,0.00016021,2]
[404297792,1770045042675,-582.33207666,0.00016021,2]
[404297793,1770045042687,-1000.0,0.00016021,2]
[404297795,1770045042698,-1000.0,0.00016021,2]
[404297796,1770045042711,-987.41342802,0.00016021,2]
[404297797,1770045042723,-1000.0,0.00016021,2]
[404297798,1770045042734,-1000.0,0.00016021,2]
[404297799,1770045042746,-1003.70343212,0.00016021,2]
[404297800,1770045042758,-1000.0,0.00016021,2]
[404297801,1770045042770,-1000.0,0.00016021,2]
[404297802,1770045042785,-1000.0,0.00016021,2]
[404297803,1770045042798,-500.0,0.00016021,2]
[404297804,1770045042810,-385.68955508,0.00016021,2]
[404297805,1770045042821,-908.63714551,0.00016021,2]
[404297806,1770045042833,-1000.0,0.00016021,2]
[404297807,1770045042844,-1000.0,0.00016021,2]
[404297808,1770045042854,-371.34493106,0.00016021,2]
[404297809,1770045042866,-500.40903786,0.00016021,2]
[404297810,1770045042878,-1000.0,0.00016021,2]
[404297811,1770045042890,-1000.0,0.00016021,2]
[404297812,1770045042902,-1000.0,0.00016021,2]
[404297813,1770045042914,-1665.35985631,0.00016164,2]
[404297814,1770045042926,-150.0,0.00016203,2]
[404297815,1770045042938,-1000.0,0.00016284,2]
[404297816,1770045042949,-159.65843549,0.00016284,2]
[404297817,1770045042961,-3559.78277318,0.00016396,2]
[404297818,1770045042974,-196.73,0.00016399,2]
[404297819,1770045042986,-163.0,0.000164,2]
[404297820,1770045042998,-4609.0,0.00016407,2]
[404297821,1770045043010,-2000.0,0.00016438,2]
[404297822,1770045043024,-4939.22,0.00016438,2]
[404297823,1770045043037,-900.0,0.00016438,2]
[404297824,1770045043049,-200.02287089,0.00016461,2]
[404297825,1770045043061,-274.75743456,0.00016463,2]
[404297826,1770045043073,-500.0,0.00016473,2]
[404297827,1770045043085,-150.0,0.00016473,2]
[404297828,1770045043099,-300.0,0.00016473,2]
[404297829,1770045043111,-164.46513231,0.00016473,2]
[404297830,1770045043124,-558.67,0.00016521,2]
[404297831,1770045043135,-500.0,0.00016568,2]
[404297832,1770045043147,-500.0,0.00016568,2]
[404297833,1770045043159,-1001.43163729,0.00016568,2]
[404297834,1770045043172,-1500.0,0.00016568,2]
[404297835,1770045043183,-1500.0,0.00016568,2]
[404297836,1770045043194,-501.51663727,0.00016568,2]
[404297837,1770045043206,-1500.0,0.00016568,2]
[404297838,1770045043217,-263.57582064,0.00016568,2]
[404297839,1770045043227,-1500.0,0.00016568,2]
[404297840,1770045043241,-1078.63346181,0.00016568,2]
[404297841,1770045043255,-501.04497332,0.00016568,2]
[404297842,1770045043268,-500.0,0.00016568,2]
[404297843,1770045043280,-503.42877829,0.00016568,2]
[404297844,1770045043304,-1501.31050168,0.00016568,2]
[404297845,1770045043317,-398.81271673,0.00016568,2]
[404297846,1770045043330,-1501.09498552,0.00016568,2]
[404297847,1770045043345,-1500.0,0.00016568,2]
[404297848,1770045043356,-1500.0,0.00016568,2]
[404297849,1770045043366,-382.63613861,0.00016568,2]
[404297850,1770045043378,-250.0,0.00016604,2]
[404297851,1770045043390,-578.20924308,0.00016604,2]
[404297852,1770045043402,-250.0,0.00016604,2]
[404297853,1770045043414,-317.3738203,0.00016604,2]
[404297854,1770045043428,-209.40437684,0.00016604,2]
[404297855,1770045043443,-250.0,0.00016604,2]
[404297856,1770045043460,-250.0,0.00016604,2]
[404297857,1770045043471,-250.0,0.00016604,2]
[404297858,1770045043482,-500.0,0.00016604,2]
[404297859,1770045043492,-250.0,0.00016604,2]
[404297860,1770045043504,-500.0,0.00016604,2]
[404297861,1770045043514,-500.0,0.00016604,2]
[404297862,1770045043525,-250.0,0.00016604,2]
[404297863,1770045043540,-721.12765535,0.00016604,2]
[404297864,1770045043552,-500.0,0.00016604,2]
[404297865,1770045043565,-250.0,0.00016604,2]
[404297866,1770045043576,-250.0,0.00016604,2]
[404297867,1770045043591,-500.0,0.00016604,2]
[404297868,1770045043604,-250.0,0.00016604,2]
[404297869,1770045043617,-500.0,0.00016604,2]
[404297870,1770045043629,-500.0,0.00016604,2]
[404297871,1770045043640,-166.20200611,0.00016604,2]
[404297872,1770045043651,-500.0,0.00016604,2]
[404297873,1770045043662,-174.61919141,0.00016604,2]
[404297874,1770045043672,-500.0,0.00016604,2]
[404297875,1770045043682,-500.0,0.00016604,2]
[404297876,1770045043694,-500.0,0.00016604,2]
[404297877,1770045043704,-1428.38747117,0.00016604,2]
[404297878,1770045043715,-859.80605061,0.00016604,2]
[404297880,1770045043726,-209.40437684,0.00016604,2]
[404297883,1770045043737,-250.0,0.00016604,2]
[404297885,1770045043748,-250.0,0.00016604,2]
[404297887,1770045043759,-249.0234262,0.00016604,2]
[404297890,1770045043771,-322.6107,0.00016604,2]
[404297891,1770045043785,-250.0,0.00016604,2]
[404297892,1770045043796,-250.0,0.00016604,2]
[404297893,1770045043807,-250.0,0.00016604,2]
[404297894,1770045043819,-250.0,0.00016604,2]
[404297895,1770045043830,-250.0,0.00016604,2]
[404297896,1770045043841,-209.40437684,0.00016604,2]
[404297897,1770045043852,-217.15233878,0.00016659,2]
[404297898,1770045043864,-152.4,0.00016712,2]
[404297899,1770045043876,-225.18697532,0.00016714,2]
[404297900,1770045043887,-2835.0,0.0001672,2]
[404297903,1770045043899,-808.0,0.0001672,2]
[404297905,1770045043910,-1000.0,0.00016755,2]
[404297908,1770045043922,-233.51889341,0.00016769,2]
[404297910,1770045043942,-1000.0,0.00016775,2]
[404297911,1770045043954,-537.95431728,0.00016801,2]
[404297912,1770045043965,-242.15909246,0.00016824,2]
[404297913,1770045043976,-839.0,0.00016849,2]
[404297914,1770045043988,-500.0,0.0001686,2]
[404297915,1770045044000,-251.11897888,0.00016879,2]
[404297916,1770045044011,-159.65843549,0.00016887,2]
[404297917,1770045044022,-260.4103811,0.00016934,2]
[404297918,1770045044035,-200.0,0.00016983,2]
[404297919,1770045044046,-270.0455652,0.00016989,2]
[404297920,1770045044057,-300.0,0.00017,2]
[404297921,1770045044068,-1022.8234433,0.00017021,2]
[404297922,1770045044079,-300.0,0.00017021,2]
[404297923,1770045044090,-206.18335719,0.00017021,2]
[404297924,1770045044101,-839.0,0.0001704,2]
[404297925,1770045044112,-163.0,0.0001704,2]
[404297926,1770045044123,-839.0,0.0001704,2]
[404297927,1770045044134,-280.03725112,0.00017044,2]
[404297928,1770045044145,-290.39862941,0.00017099,2]
[404297929,1770045044157,-1103.39,0.000171,2]
[404297930,1770045044169,-1761.11407335,0.00017116,2]
[404297931,1770045044180,-2000.0,0.00017116,2]
[404297932,1770045044192,-2000.0,0.00017116,2]
[404297933,1770045044205,-2000.0,0.00017116,2]
[404297934,1770045044216,-1003.30357537,0.00017116,2]
[404297935,1770045044228,-503.56470175,0.00017116,2]
[404297936,1770045044240,-3559.78277318,0.00017148,2]
[404297937,1770045044251,-217.15233878,0.00017152,2]
[404297938,1770045044263,-181.08010149,0.00017152,2]
[404297939,1770045044274,-1481.23780761,0.00017152,2]
[404297940,1770045044286,-891.61887448,0.00017152,2]
[404297941,1770045044297,-217.15233878,0.00017152,2]
[404297942,1770045044307,-301.1433787,0.00017154,2]
[404297943,1770045044320,-315.0,0.00017175,2]
[404297944,1770045044330,-6961.53879567,0.00017205,2]
[404297945,1770045044341,-150.0,0.00017207,2]
[404297946,1770045044352,-300.0,0.00017228,2]
[404297947,1770045044362,-150.64,0.00017228,2]
[404297948,1770045044372,-938.99,0.00017228,2]
[404297949,1770045044383,-469.55,0.00017228,2]
[404297950,1770045044393,-469.55,0.00017228,2]
[404297951,1770045044404,-250.45,0.00017228,2]
[404297952,1770045044415,-217.32,0.00017228,2]
[404297953,1770045044425,-834.31,0.00017228,2]
[404297954,1770045044436,-1000.0,0.0001726,2]
[404297955,1770045044447,-500.0,0.00017288,2]
[404297956,1770045044463,-5888.0,0.000173,2]
[404297957,1770045044474,-162.264,0.00017321,2]
[404297958,1770045044485,-1410.0,0.00017321,2]
[404297959,1770045044497,-728.231,0.00017321,2]
[404297960,1770045044508,-1334.0,0.00017321,2]
[404297961,1770045044522,-251.0,0.00017331,2]
[404297962,1770045044534,-1273.693,0.00017331,2]
[404297963,1770045044545,-1205.0,0.00017331,2]
[404297964,1770045044556,-917.0,0.00017331,2]
[404297965,1770045044568,-568.0,0.00017331,2]
[404297966,1770045044579,-1316.0,0.00017331,2]
[404297967,1770045044591,-2465.108,0.00017331,2]
[404297968,1770045044602,-3264.919,0.00017331,2]
[404297969,1770045044612,-5888.0,0.00017336,2]
[404297970,1770045044623,-163.0,0.0001736,2]
[404297971,1770045044634,-839.0,0.0001736,2]
[404297972,1770045044646,-839.0,0.0001736,2]
[404297973,1770045044657,-839.0,0.0001736,2]
[404297974,1770045044667,-2844.0,0.000174,2]
[404297975,1770045044679,-500.0,0.00017452,2]
[404297976,1770045044689,-159.65843549,0.00017491,2]
[404297977,1770045044700,-5888.0,0.00017514,2]
[404297978,1770045044710,-1600.0,0.00017521,2]
[404297979,1770045044720,-1000.0,0.00017534,2]
[404297980,1770045044731,-150.0,0.00017534,2]
[404297981,1770045044741,-559.85,0.00017534,2]
[404297982,1770045044752,-180.11,0.00017534,2]
[404297983,1770045044762,-150.0,0.00017534,2]
[404297984,1770045044773,-150.0,0.00017534,2]
[404297985,1770045044784,-559.85,0.00017534,2]
[404297986,1770045044794,-348.63,0.00017534,2]
[404297987,1770045044804,-559.85,0.00017534,2]
[404297988,1770045044815,-450.0,0.00017568,2]
[404297989,1770045044825,-1500.0,0.000176,2]
[404297990,1770045044835,-1004.64195123,0.0001764,2]
[404297991,1770045044846,-1149.25828368,0.0001764,2]
[404297992,1770045044858,-1129.19111427,0.0001764,2]
[404297993,1770045044870,-1030.35942578,0.0001764,2]
[404297994,1770045044880,-1041.70832252,0.0001764,2]
[404297995,1770045044891,-1064.14515709,0.0001764,2]
[404297996,1770045044903,-1018.97357624,0.0001764,2]
[404297997,1770045044915,-1114.62685221,0.0001764,2]
[404297998,1770045044926,-1918.94815528,0.0001764,2]
[404297999,1770045044938,-383.79,0.00017644,2]
[404298000,1770045044948,-1932.69026087,0.00017664,2]
[404298001,1770045044960,-2250.14829239,0.00017664,2]
[404298002,1770045044970,-2500.0,0.00017664,2]
[404298003,1770045044980,-839.0,0.0001768,2]
[404298004,1770045044991,-250.52896875,0.00017698,2]
[404298005,1770045045001,-500.0,0.00017698,2]
[404298006,1770045045012,-150.0,0.00017698,2]
[404298007,1770045045022,-150.0,0.00017698,2]
[404298008,1770045045034,-500.0,0.00017698,2]
[404298009,1770045045044,-500.0,0.00017698,2]
[404298010,1770045045055,-500.0,0.00017698,2]
[404298011,1770045045065,-150.0,0.00017698,2]
[404298012,1770045045075,-500.0,0.00017698,2]
[404298013,1770045045085,-500.0,0.00017698,2]
[404298014,1770045045096,-500.0,0.00017698,2]
[404298015,1770045045106,-150.0,0.00017698,2]
[404298016,1770045045116,-500.0,0.00017698,2]
[404298017,1770045045126,-5617.0,0.00017698,2]
[404298018,1770045045136,-150.0,0.00017698,2]
[404298019,1770045045147,-150.0,0.00017698,2]
[404298020,1770045045157,-150.0,0.00017698,2]
[404298021,1770045045167,-150.0,0.00017698,2]
[404298022,1770045045177,-150.0,0.00017698,2]
[404298023,1770045045187,-500.0,0.00017698,2]
[404298024,1770045045198,-150.0,0.00017698,2]
[404298025,1770045045207,-500.0,0.00017698,2]
[404298026,1770045045218,-276.99112212,0.000177,2]
[404298027,1770045045228,-187.78006525,0.000177,2]
[404298028,1770045045242,-1536.04360649,0.000177,2]
[404298029,1770045045253,-924.60877284,0.000177,2]
[404298030,1770045045265,-225.18697532,0.000177,2]
[404298031,1770045045275,-9419.2065,0.00017705,2]
[404298032,1770045045288,-180.29,0.00017726,2]
[404298033,1770045045299,-180.29,0.00017726,2]
[404298034,1770045045310,-381.0,0.00017732,2]
[404298035,1770045045321,-329.74128292,0.00017746,2]
[404298036,1770045045331,-266.13840863,0.00017753,2]
[404298037,1770045045342,-500.0,0.00017753,2]
[404298038,1770045045353,-150.0,0.00017753,2]
[404298039,1770045045364,-500.0,0.00017753,2]
[404298040,1770045045374,-500.0,0.00017753,2]
[404298041,1770045045385,-500.0,0.00017753,2]
[404298042,1770045045395,-166.03286464,0.00017753,2]
[404298043,1770045045406,-626.74400397,0.00017753,2]
[404298044,1770045045416,-500.0,0.00017753,2]
[404298045,1770045045427,-500.0,0.00017753,2]
[404298046,1770045045438,-150.0,0.00017753,2]
[404298047,1770045045448,-500.0,0.00017753,2]
[404298048,1770045045462,-5617.0,0.00017753,2]
[404298049,1770045045472,-150.0,0.00017753,2]
[404298050,1770045045483,-500.0,0.00017753,2]
[404298051,1770045045499,-500.0,0.00017753,2]
[404298052,1770045045510,-381.0,0.00017769,2]
[404298053,1770045045522,-5888.0,0.00017782,2]
[404298054,1770045045534,-1500.0,0.000178,2]
[404298055,1770045045545,-381.0,0.00017806,2]
[404298056,1770045045556,-500.0,0.00017808,2]
[404298057,1770045045567,-150.0,0.00017808,2]
[404298058,1770045045578,-500.0,0.00017808,2]
[404298059,1770045045589,-500.0,0.00017808,2]
[404298060,1770045045600,-500.0,0.00017808,2]
[404298061,1770045045611,-203.40923612,0.00017808,2]
[404298062,1770045045622,-500.0,0.00017808,2]
[404298063,1770045045634,-150.0,0.00017808,2]
[404298064,1770045045645,-354.76107445,0.00017808,2]
[404298065,1770045045656,-5617.0,0.00017808,2]
[404298066,1770045045667,-150.0,0.00017808,2]
[404298067,1770045045678,-500.0,0.00017808,2]
[404298068,1770045045693,-500.0,0.00017808,2]
[404298069,1770045045705,-500.0,0.00017808,2]
[404298070,1770045045716,-1000.0,0.00017808,2]
[404298071,1770045045728,-381.0,0.00017827,2]
[404298072,1770045045739,-381.0,0.00017839,2]
[404298073,1770045045750,-2396.51,0.0001784,2]
[404298074,1770045045762,-381.0,0.00017841,2]
[404298075,1770045045773,-456.738324,0.00017843,2]
[404298077,1770045045783,-381.0,0.00017854,2]
[404298079,1770045045795,-200.0,0.00017856,2]
[404298081,1770045045806,-500.0,0.00017862,2]
[404298083,1770045045817,-282.97813088,0.00017862,2]
[404298086,1770045045828,-500.0,0.00017862,2]
[404298088,1770045045839,-206.36581695,0.00017862,2]
[404298090,1770045045849,-500.0,0.00017862,2]
[404298092,1770045045861,-500.0,0.00017862,2]
[404298094,1770045045872,-5617.0,0.00017862,2]
[404298097,1770045045886,-150.0,0.00017862,2]
[404298098,1770045045897,-500.0,0.00017862,2]
[404298099,1770045045908,-500.0,0.00017862,2]
[404298100,1770045045919,-500.0,0.00017863,2]
[404298101,1770045045930,-381.0,0.00017876,2]
[404298102,1770045045943,-2603.4401617,0.00017898,3]
[404298103,1770045045954,-537.95431728,0.000179,2]
[404298104,1770045045965,-3559.78277318,0.000179,2]
[404298105,1770045045976,-1970.59746588,0.000179,2]
[404298106,1770045045987,-381.0,0.00017901,2]
[404298110,1770045046392,-500.0,0.00017917,2]
[404298111,1770045046529,-500.0,0.00017917,2]
[404298114,1770045046554,-500.0,0.00017917,2]
[404298115,1770045046569,-500.0,0.00017917,2]
[404298116,1770045046579,-5617.0,0.00017917,2]
[404298117,1770045046589,-156.44868677,0.00017917,2]
[404298118,1770045046599,-500.0,0.00017917,2]
[404298119,1770045046609,-500.0,0.00017917,2]
[404298120,1770045046619,-500.0,0.00017918,2]
[404298121,1770045046629,-381.0,0.00017918,2]
[404298122,1770045046639,-381.0,0.00017927,2]
[404298123,1770045046649,-381.0,0.00017935,2]
[404298124,1770045046658,-5800.0,0.00017949,2]
[404298125,1770045046668,-381.0,0.00017953,2]
[404298127,1770045046679,-381.0,0.00017954,2]
[404298128,1770045046689,-5800.0,0.00017958,2]
[404298129,1770045046699,-294.0,0.00017959,2]
[404298130,1770045046709,-118626.4246714,0.00017964,2]
[404298131,1770045046719,-12831.0532042,0.00017964,2]
[404298132,1770045046728,-82382.3169865,0.00017964,2]
[404298133,1770045046740,-5800.0,0.00017966,2]
[404298134,1770045046749,-600.0,0.0001797,2]
[404298135,1770045046759,-1000.0,0.0001797,2]
[404298136,1770045046770,-1000.0,0.0001797,2]
[404298137,1770045046779,-1000.0,0.0001797,2]
[404298138,1770045046789,-1000.0,0.0001797,2]
[404298139,1770045046799,-1050.00094472,0.0001797,2]
[404298140,1770045046808,-500.0,0.0001797,2]
[404298141,1770045046819,-1000.0,0.0001797,2]
[404298142,1770045046828,-500.0,0.00017972,2]
[404298143,1770045046838,-500.0,0.00017972,2]
[404298144,1770045046849,-5617.0,0.00017972,2]
[404298145,1770045046858,-150.0,0.00017972,2]
[404298146,1770045046868,-500.0,0.00017972,2]
[404298147,1770045046879,-546.08935447,0.00017972,2]
[404298148,1770045046889,-334.5472959,0.00017973,2]
[404298149,1770045046899,-5800.0,0.00017975,2]
[404298150,1770045046909,-381.0,0.00017979,2]
[404298151,1770045046919,-5800.0,0.00017983,2]
[404298152,1770045046930,-165.21031004,0.0001799,2]
[404298153,1770045046942,-5800.0,0.00017992,2]
[404298154,1770045046952,-203.09061065,0.00017999,2]
[404298155,1770045046963,-300.0,0.00017999,2]
[404298156,1770045046973,-300.0,0.00017999,2]
[404298157,1770045046984,-300.0,0.00017999,2]
[404298158,1770045046994,-300.0,0.00017999,2]
[404298159,1770045047003,-300.0,0.00017999,2]
[404298160,1770045047013,-300.0,0.00017999,2]
[404298161,1770045047023,-300.0,0.00017999,2]
[404298162,1770045047033,-300.0,0.00017999,2]
[404298163,1770045047045,-300.0,0.00017999,2]
[404298164,1770045047054,-300.0,0.00017999,2]
[404298165,1770045047064,-189.98558182,0.00017999,2]
[404298166,1770045047073,-341.63207322,0.00017999,2]
[404298167,1770045047082,-3365429.85991066,0.00018,2]
[404298168,1770045047684,-869.58751744,0.00016393,2]
[404298169,1770045047746,-15049.27115532,0.00016393,2]